bitfinex/quotes_BTCUSD_20250624
["timestamp","ask_amount","ask_price","bid_price","bid_amount"]
[1750723920839,7.14832501,105540.0,105530.0,0.00024612]
[1750723921047,7.02443162,105540.0,105530.0,0.00024612]
[1750723921263,0.34,105530.0,105520.0,0.0002]
[1750723921465,1.03659435,105530.0,105520.0,0.00033068]
[1750723922813,1.05295435,105530.0,105520.0,0.00033068]
[1750723923016,1.02085435,105530.0,105520.0,0.00033068]
[1750723923219,0.01454085,105520.0,105510.0,0.0166]
[1750723923424,0.59026083,105520.0,105510.0,0.0166]
[1750723923632,0.61279278,105520.0,105510.0,0.0166]
[1750723924469,0.61279278,105520.0,105510.0,0.0186]
[1750723924852,0.61279278,105520.0,105510.0,0.0206]
[1750723925261,0.61279278,105520.0,105510.0,0.0186]
[1750723926086,0.59825193,105520.0,105510.0,0.0348]
[1750723926286,0.40729052,105520.0,105510.0,0.0328]
[1750723926440,0.56973052,105520.0,105510.0,0.0328]
[1750723927765,0.569732,105520.0,105510.0,0.0328]
[1750723928925,0.60598676,105520.0,105510.0,0.0328]
[1750723929324,0.60598676,105520.0,105510.0,0.0002]
[1750723929544,0.569732,105520.0,105510.0,0.0002]
[1750723930208,0.569732,105520.0,105510.0,0.0159]
[1750723930628,0.569732,105520.0,105510.0,0.0169]
[1750723931062,0.569732,105520.0,105510.0,0.0012]
[1750723931680,0.28714006,105520.0,105510.0,0.0012]
[1750723931889,0.56973315,105520.0,105510.0,0.0168]
[1750723932101,0.56973315,105520.0,105510.0,0.0322]
[1750723933139,0.28714121,105520.0,105510.0,0.0322]
[1750723933344,0.56973315,105520.0,105510.0,0.0322]
[1750723933570,0.40729315,105520.0,105510.0,0.0322]
[1750723933776,0.28714121,105520.0,105510.0,0.0322]
[1750723934002,0.28047381,105520.0,105510.0,0.0322]
[1750723934208,0.56306575,105520.0,105510.0,0.0322]
[1750723935250,0.66433932,105520.0,105510.0,0.0322]
[1750723935468,0.67888017,105520.0,105510.0,0.0012]
[1750723935673,0.61271678,105520.0,105510.0,0.0012]
[1750723936919,0.95796912,105520.0,105510.0,0.0012]
[1750723937135,1.38589065,105520.0,105510.0,0.0012]
[1750723937367,6.69177519,105520.0,105510.0,0.0012]
[1750723937563,6.55978609,105520.0,105510.0,0.0012]
[1750723937774,6.74932361,105520.0,105510.0,0.0012]
[1750723938030,6.74932361,105520.0,105510.0,0.0002]
[1750723938232,0.04674085,105500.0,105490.0,0.0002]
[1750723938443,0.67011301,105500.0,105490.0,0.0002]
[1750723938649,0.72440536,105500.0,105490.0,0.00066157]
[1750723938859,0.74218331,105500.0,105490.0,0.00066157]
[1750723939493,0.66423322,105500.0,105490.0,0.00066157]
[1750723939922,0.64853322,105500.0,105490.0,0.00066157]
[1750723940342,0.66413322,105500.0,105490.0,0.00066157]
[1750723940786,0.63203322,105500.0,105490.0,0.00066157]
[1750723941271,0.38234128,105500.0,105490.0,0.00066157]
[1750723941491,0.66493322,105500.0,105490.0,0.00066157]
[1750723941756,0.33454343,105500.0,105490.0,0.00066157]
[1750723941976,0.61713537,105500.0,105490.0,0.00066157]
[1750723942197,0.6171132,105500.0,105490.0,0.00066157]
[1750723942414,0.6045132,105500.0,105490.0,0.00066157]
[1750723943099,0.5978666,105500.0,105490.0,0.00066157]
[1750723943334,0.69998269,105500.0,105490.0,0.00066157]
[1750723943557,0.69333655,105500.0,105490.0,0.00066157]
[1750723945772,0.4191666,105500.0,105490.0,0.00066157]
[1750723945981,0.58758465,105500.0,105490.0,0.01726157]
[1750723946190,0.5730438,105500.0,105490.0,0.03296157]
[1750723946363,0.5445338,105500.0,105490.0,0.03296157]
[1750723946939,0.5435338,105500.0,105490.0,0.03296157]
[1750723947152,0.5405338,105500.0,105490.0,0.03296157]
[1750723947353,0.5405338,105500.0,105490.0,0.03496157]
[1750723949184,0.5405338,105500.0,105490.0,0.03696157]
[1750723950148,0.59794186,105500.0,105490.0,0.23603257]
[1750723950349,0.59794186,105500.0,105490.0,0.25499144]
[1750723950553,0.59794186,105500.0,105490.0,0.23603257]
[1750723950729,0.59794186,105500.0,105490.0,0.25499144]
[1750723951278,0.59794186,105500.0,105490.0,0.24551205]
[1750723951541,0.59794186,105500.0,105490.0,0.25499144]
[1750723952132,0.43550186,105500.0,105490.0,0.25499144]
[1750723952344,0.09550186,105500.0,105490.0,0.27394968]
[1750723952496,0.09550186,105500.0,105490.0,0.25499144]
[1750723952899,0.09550186,105500.0,105490.0,0.26447074]
[1750723953115,0.09550186,105500.0,105490.0,0.26447038]
[1750723953320,0.09550186,105500.0,105490.0,0.2719495]
[1750723953520,0.09550186,105500.0,105490.0,0.26047002]
[1750723953727,0.09650186,105500.0,105490.0,0.25351169]
[1750723954144,0.09650186,105500.0,105490.0,0.26299072]
[1750723954390,0.3790938,105500.0,105490.0,0.01266157]
[1750723957354,0.7190938,105500.0,105490.0,0.01266157]
[1750723962688,0.73363465,105500.0,105490.0,0.01266157]
[1750723964181,0.76533465,105500.0,105490.0,0.01266157]
[1750723964761,0.9504255,105500.0,105490.0,0.01266157]
[1750723966648,0.9187255,105500.0,105490.0,0.01266157]
[1750723968878,0.93646329,105500.0,105490.0,0.01266157]
[1750723970177,0.9187255,105500.0,105490.0,0.01266157]
[1750723970406,0.93646004,105500.0,105490.0,0.01266157]
[1750723971288,0.96776004,105500.0,105490.0,0.01266157]
[1750723973329,0.96776208,105500.0,105490.0,0.01266157]
[1750723974691,0.93646208,105500.0,105490.0,0.01266157]
[1750723976126,0.93646593,105500.0,105490.0,0.01266157]
[1750723976580,0.93646552,105500.0,105490.0,0.01266157]
[1750723978900,0.9187255,105500.0,105490.0,0.01266157]
[1750723979125,0.93646512,105500.0,105490.0,0.01266157]
[1750723981718,0.96497496,105500.0,105490.0,0.01266157]
[1750723983229,0.99587496,105500.0,105490.0,0.01266157]
[1750723983898,0.98077496,105500.0,105490.0,0.01266157]
[1750723984111,0.93646596,105500.0,105490.0,0.01266157]
[1750723984320,0.93646966,105500.0,105490.0,0.01266157]
[1750723984967,0.99647866,105500.0,105490.0,0.01266157]
[1750723987155,1.04780448,105500.0,105490.0,0.01266157]
[1750723987356,0.99647866,105500.0,105490.0,0.01266157]
[1750723987787,1.00313389,105500.0,105490.0,0.01266157]
[1750723988657,1.40536856,105500.0,105490.0,0.01266157]
[1750723988884,1.12277662,105500.0,105490.0,0.01266157]
[1750723989096,0.96720382,105500.0,105490.0,0.01266157]
[1750723989309,1.21268977,105500.0,105490.0,0.01266157]
[1750723989524,1.21168977,105500.0,105490.0,0.00766157]
[1750723989732,1.21168977,105500.0,105490.0,0.00066157]
[1750723990812,1.21166949,105500.0,105490.0,0.00066157]
[1750723991023,1.21166949,105500.0,105490.0,0.00166157]
[1750723991240,1.24103556,105500.0,105490.0,0.00166157]
[1750723991464,1.26949349,105500.0,105490.0,0.00066157]
[1750723991890,1.27049349,105500.0,105490.0,0.00066157]
[1750723992116,0.04604085,105490.0,105480.0,0.0002]
[1750723992338,0.16592502,105490.0,105480.0,0.00024608]
[1750723992993,0.44851696,105490.0,105480.0,0.00024608]
[1750723994652,0.44851696,105490.0,105480.0,0.00124608]
[1750723995708,0.44849556,105490.0,105480.0,0.00124608]
[1750723996601,0.41035168,105490.0,105480.0,0.00124608]
[1750723996821,0.57427168,105490.0,105480.0,0.00124608]
[1750723997665,0.29167974,105490.0,105480.0,0.00124608]
[1750723997882,0.39581083,105490.0,105480.0,0.01724608]
[1750723998095,0.39581083,105490.0,105480.0,0.23253586]
[1750723998096,0.09550186,105490.0,105480.0,0.23253586]
[1750723998304,0.09550186,105490.0,105480.0,0.03444608]
[1750723998958,0.09550186,105490.0,105480.0,0.04392655]
[1750723999142,0.3780938,105490.0,105480.0,0.04392655]
[1750723999436,0.40077392,105490.0,105480.0,0.03444608]
[1750723999643,0.3780938,105490.0,105480.0,0.03444608]
[1750724002492,0.3780938,105490.0,105480.0,0.00224608]
[1750724002922,0.7180938,105490.0,105480.0,0.00224608]
[1750724003149,0.84386375,105490.0,105480.0,0.00224608]
[1750724003355,0.80333349,105490.0,105480.0,0.00224608]
[1750724003985,0.80333346,105490.0,105480.0,0.00224608]
[1750724004430,0.52074152,105490.0,105480.0,0.00224608]
[1750724004643,0.80333346,105490.0,105480.0,0.00224608]
[1750724004870,0.89880341,105490.0,105480.0,0.00224608]
[1750724007622,0.88108662,105490.0,105480.0,0.00224608]
[1750724010826,0.78561667,105490.0,105480.0,0.00224608]
[1750724011029,0.74077582,105490.0,105480.0,0.00224608]
[1750724011241,0.92144669,105490.0,105480.0,0.03264608]
[1750724012535,0.90373582,105490.0,105480.0,0.03264608]
[1750724012746,0.92145101,105490.0,105480.0,0.03264608]
[1750724012949,0.63885907,105490.0,105480.0,0.00224608]
[1750724013158,0.92145101,105490.0,105480.0,0.00224608]
[1750724013967,0.75849101,105490.0,105480.0,0.00224608]
[1750724014190,0.92141101,105490.0,105480.0,1.03344608]
[1750724014846,0.92121101,105490.0,105480.0,1.03344608]
[1750724017104,0.89852899,105490.0,105480.0,1.03344608]
[1750724018440,0.89852899,105490.0,105480.0,1.01744608]
[1750724018750,0.89852899,105490.0,105480.0,1.00224608]
[1750724019500,0.92982899,105490.0,105480.0,1.00224608]
[1750724019711,0.95249462,105490.0,105480.0,1.00224608]
[1750724020483,0.92982899,105490.0,105480.0,1.00224608]
[1750724021218,0.95249249,105490.0,105480.0,1.00224608]
[1750724022940,0.92119249,105490.0,105480.0,1.00224608]
[1750724023139,0.93639249,105490.0,105480.0,1.00224608]
[1750724023346,0.96683334,105490.0,105480.0,1.00224608]
[1750724023746,0.94911815,105490.0,105480.0,1.00224608]
[1750724023954,0.9668301,105490.0,105480.0,1.00224608]
[1750724024345,0.9953431,105490.0,105480.0,1.00224608]
[1750724024560,1.09745492,105490.0,105480.0,1.00224608]
[1750724025148,1.06894192,105490.0,105480.0,1.00224608]
[1750724026515,0.97347197,105490.0,105480.0,1.00224608]
[1750724027161,1.28439328,105490.0,105480.0,1.00224608]
[1750724027767,1.32216578,105490.0,105480.0,1.00224608]
[1750724028379,1.32216373,105490.0,105480.0,1.00224608]
[1750724029364,1.32216573,105490.0,105480.0,1.00224608]
[1750724029579,1.41763568,105490.0,105480.0,1.00224608]
[1750724029785,1.95974285,105490.0,105480.0,1.00224608]
[1750724030041,7.06983797,105490.0,105480.0,1.00224608]
[1750724030247,7.05211885,105490.0,105480.0,1.00224608]
[1750724030372,7.06983904,105490.0,105480.0,1.00224608]
[1750724030564,7.10102433,105490.0,105480.0,1.00224608]
[1750724030761,7.10102433,105490.0,105480.0,1.00124608]
[1750724030965,7.11250345,105490.0,105480.0,1.00124608]
[1750724031193,7.12198275,105490.0,105480.0,0.95365385]
[1750724031613,7.12946223,105490.0,105480.0,0.91675385]
[1750724031766,7.11350345,105490.0,105480.0,0.91675385]
[1750724031976,6.90483619,105490.0,105480.0,0.91675385]
[1750724032178,6.79211619,105490.0,105480.0,0.91675385]
[1750724032374,6.95531619,105490.0,105480.0,0.91675385]
[1750724032613,7.0092976,105490.0,105480.0,0.91775385]
[1750724032980,6.8020976,105490.0,105480.0,0.91775385]
[1750724033179,7.01877636,105490.0,105480.0,0.91775385]
[1750724033395,7.12372525,105490.0,105480.0,0.91775385]
[1750724033597,7.13320437,105490.0,105480.0,0.91775385]
[1750724034008,7.08320437,105490.0,105480.0,0.91775385]
[1750724034169,7.13320437,105490.0,105480.0,0.91775385]
[1750724034498,7.14268367,105490.0,105480.0,0.91775385]
[1750724034655,7.18042547,105490.0,105480.0,0.8702855]
[1750724035060,7.12376138,105490.0,105480.0,0.82281715]
[1750724035284,7.30387387,105490.0,105480.0,0.82281715]
[1750724035499,7.30386321,105490.0,105480.0,0.82281715]
[1750724036053,7.11427178,105490.0,105480.0,0.82281715]
[1750724036254,7.01880183,105490.0,105480.0,0.82281715]
[1750724036867,7.0282814,105490.0,105480.0,0.82281715]
[1750724037105,6.22745908,105490.0,105480.0,0.82281715]
[1750724037271,6.99984287,105490.0,105480.0,0.82281715]
[1750724037472,7.00931457,105490.0,105480.0,0.82281715]
[1750724037685,1.61861584,105490.0,105480.0,0.82281715]
[1750724037884,1.81636337,105490.0,105480.0,0.82281715]
[1750724038086,1.83090422,105490.0,105480.0,0.82281715]
[1750724038283,1.88090422,105490.0,105480.0,0.82281715]
[1750724038986,1.88090422,105490.0,105480.0,0.82231715]
[1750724040201,1.88090422,105490.0,105480.0,0.77484883]
[1750724040202,7.07637417,105490.0,105480.0,0.77484883]
[1750724040440,6.86917417,105490.0,105480.0,0.77484883]
[1750724040646,7.11411534,105490.0,105480.0,0.77484883]
[1750724040890,7.10481126,105490.0,105480.0,0.72738051]
[1750724041089,7.13657166,105490.0,105480.0,0.29513946]
[1750724041421,6.84338119,105490.0,105480.0,0.24767114]
[1750724041622,7.04110171,105490.0,105480.0,0.20020282]
[1750724041834,7.04110171,105490.0,105480.0,0.1527345]
[1750724042043,7.0505811,105490.0,105480.0,0.05779786]
[1750724042222,7.04110171,105490.0,105480.0,0.04746832]
[1750724042463,7.14605114,105490.0,105480.0,0.01032954]
[1750724042698,7.16509066,105490.0,105480.0,0.01032954]
[1750724042900,1.00182473,105480.0,105470.0,0.0002]
[1750724043016,1.30675552,105480.0,105470.0,0.0002]
[1750724043634,1.26759327,105480.0,105470.0,0.0002]
[1750724043828,1.28526418,105480.0,105470.0,0.0002]
[1750724044024,1.33282418,105480.0,105470.0,0.0002]
[1750724044727,1.38282418,105480.0,105470.0,0.0002]
[1750724044939,1.40677269,105480.0,105470.0,0.0002]
[1750724045274,6.45677269,105480.0,105470.0,0.0002]
[1750724045468,1.33482418,105480.0,105470.0,0.0002]
[1750724046858,1.36273899,105480.0,105470.0,0.0002]
[1750724047067,1.34506808,105480.0,105470.0,0.0002]
[1750724047302,1.36274321,105480.0,105470.0,0.0002]
[1750724047666,1.15574321,105480.0,105470.0,0.0002]
[1750724047898,1.36274321,105480.0,105470.0,0.0002]
[1750724048540,1.15574321,105480.0,105470.0,0.0002]
[1750724048713,1.36270321,105480.0,105470.0,0.0002]
[1750724049525,1.12364321,105480.0,105470.0,0.0002]
[1750724049770,1.33059013,105480.0,105470.0,0.0002]
[1750724051143,1.12363013,105480.0,105470.0,0.0002]
[1750724051394,1.33059013,105480.0,105470.0,0.0002]
[1750724052312,1.45434878,105480.0,105470.0,0.0002]
[1750724052543,1.44771981,105480.0,105470.0,0.0002]
[1750724052739,1.35888202,105480.0,105470.0,0.0002]
[1750724053453,1.39662319,105480.0,105470.0,0.0002]
[1750724053650,1.35888202,105480.0,105470.0,0.0002]
[1750724054257,0.85478923,105480.0,105470.0,0.0312]
[1750724054656,0.96038153,105480.0,105470.0,0.0312]
[1750724054862,1.24297347,105480.0,105470.0,0.0312]
[1750724055249,1.24097347,105480.0,105470.0,0.0158]
[1750724055460,1.28080302,105480.0,105470.0,0.0168]
[1750724055665,1.28081508,105480.0,105470.0,0.0168]
[1750724055871,1.28081508,105480.0,105470.0,0.0188]
[1750724056075,1.28081508,105480.0,105470.0,0.0345]
[1750724057287,0.64368229,105480.0,105470.0,0.0345]
[1750724057501,0.60874937,105480.0,105470.0,0.0345]
[1750724058929,0.44634937,105480.0,105470.0,0.0345]
[1750724059133,0.60874937,105480.0,105470.0,0.0345]
[1750724059735,0.32615743,105480.0,105470.0,0.0345]
[1750724060126,0.44634937,105480.0,105470.0,0.0345]
[1750724060332,0.60874937,105480.0,105470.0,0.0345]
[1750724061069,0.59107211,105480.0,105470.0,0.0345]
[1750724061695,0.60877443,105480.0,105470.0,0.0345]
[1750724062848,0.16378249,105480.0,105470.0,0.0345]
[1750724063075,0.32614249,105480.0,105470.0,0.0345]
[1750724063292,0.44637443,105480.0,105470.0,0.0345]
[1750724063489,0.60873443,105480.0,105470.0,0.0345]
[1750724064011,0.30844017,105480.0,105470.0,0.0345]
[1750724064217,0.59103211,105480.0,105470.0,0.0345]
[1750724064645,0.56836861,105480.0,105470.0,0.0345]
[1750724064960,0.40600861,105480.0,105470.0,0.0345]
[1750724065156,0.56836861,105480.0,105470.0,0.0345]
[1750724066444,0.09550186,105480.0,105470.0,0.0345]
[1750724066662,0.25786186,105480.0,105470.0,0.0345]
[1750724067086,4.604e-05,105490.0,105480.0,0.0326]
[1750724067301,0.2579079,105490.0,105480.0,0.0326]
[1750724067516,0.54049984,105490.0,105480.0,0.0326]
[1750724068161,0.54149984,105490.0,105480.0,0.0326]
[1750724068798,0.54049984,105490.0,105480.0,0.04208047]
[1750724069032,0.54049984,105490.0,105480.0,0.0326]
[1750724069248,0.54049984,105490.0,105480.0,0.05156085]
[1750724069447,0.54049984,105490.0,105480.0,0.0326]
[1750724070049,0.54049984,105490.0,105480.0,0.0356]
[1750724070466,0.54049984,105490.0,105480.0,0.003]
[1750724071599,0.2579079,105490.0,105480.0,0.0344]
[1750724071805,0.54049984,105490.0,105480.0,0.0344]
[1750724072014,0.54049984,105490.0,105480.0,0.0374]
[1750724075763,0.2579079,105490.0,105480.0,0.0374]
[1750724075981,0.54049984,105490.0,105480.0,0.0374]
[1750724076354,0.2579079,105490.0,105480.0,0.0374]
[1750724076558,0.54049984,105490.0,105480.0,0.0374]
[1750724077769,0.54049984,105490.0,105480.0,0.0214]
[1750724079847,0.54049984,105490.0,105480.0,0.006]
[1750724083651,0.56316953,105490.0,105480.0,0.006]
[1750724084530,0.57836953,105490.0,105480.0,0.006]
[1750724085279,0.59336953,105490.0,105480.0,0.006]
[1750724085478,0.44871769,105490.0,105480.0,0.006]
[1750724085683,1.23038232,105490.0,105480.0,0.006]
[1750724086129,0.94779038,105490.0,105480.0,0.006]
[1750724086569,0.95443355,105490.0,105480.0,0.006]
[1750724086992,1.23702549,105490.0,105480.0,0.006]
[1750724087195,1.29707459,105490.0,105480.0,0.006]
[1750724087397,0.59548388,105480.0,105470.0,0.0002]
[1750724087599,0.75813543,105480.0,105470.0,0.0002]
[1750724088065,0.78642413,105480.0,105470.0,0.0002]
[1750724088287,0.8107774,105480.0,105470.0,0.0002]
[1750724088480,0.87404915,105480.0,105470.0,0.0002]
[1750724088730,0.87504915,105480.0,105470.0,0.0002]
[1750724088993,1.21504915,105480.0,105470.0,0.0002]
[1750724089200,1.22390442,105480.0,105470.0,0.0002]
[1750724089415,1.26164559,105480.0,105470.0,0.0002]
[1750724089874,1.21504915,105480.0,105470.0,0.0002]
[1750724090100,1.24680955,105480.0,105470.0,0.0002]
[1750724090777,1.24880955,105480.0,105470.0,0.0002]
[1750724091192,1.28655072,105480.0,105470.0,0.0002]
[1750724091627,1.31469213,105480.0,105470.0,0.0002]
[1750724092608,1.28439213,105480.0,105460.0,0.0002]
[1750724092832,1.22638614,105470.0,105460.0,0.0002]
[1750724093038,1.4117086,105470.0,105460.0,0.0002]
[1750724093655,1.07808671,105470.0,105460.0,0.0002]
[1750724093871,1.05373344,105470.0,105460.0,0.0002]
[1750724094080,1.07801548,105470.0,105460.0,0.0002]
[1750724094255,1.08749621,105470.0,105460.0,0.0002]
[1750724094667,1.09149612,105470.0,105460.0,0.0012]
[1750724094878,1.46955538,105470.0,105460.0,0.0012]
[1750724095286,1.46137916,105470.0,105460.0,0.0012]
[1750724095477,1.47455561,105470.0,105460.0,0.0012]
[1750724095690,1.48403635,105470.0,105460.0,0.0012]
[1750724095899,6.53403626,105470.0,105460.0,0.0012]
[1750724096109,6.53403617,105470.0,105460.0,0.0012]
[1750724096725,6.52739658,105470.0,105460.0,0.0012]
[1750724096938,6.53401159,105470.0,105460.0,0.0012]
[1750724097609,6.59349241,105470.0,105460.0,0.0012]
[1750724097816,6.56505039,105470.0,105460.0,0.0012]
[1750724098039,6.28245845,105470.0,105460.0,0.0012]
[1750724098838,6.56505039,105470.0,105460.0,0.0012]
[1750724099618,6.55841827,105470.0,105460.0,0.0012]
[1750724099820,6.56502687,105470.0,105460.0,0.0012]
[1750724100018,6.18696498,105470.0,105460.0,0.0012]
[1750724100458,5.98028498,105470.0,105460.0,0.0012]
[1750724100665,6.18700498,105470.0,105460.0,0.0012]
[1750724101124,6.4885583,105470.0,105460.0,1e-08]
[1750724101248,5.0811,105460.0,105450.0,0.00016001]
[1750724101453,0.89427837,105460.0,105450.0,0.00016001]
[1750724102075,0.87665543,105460.0,105450.0,0.00016001]
[1750724102895,0.97495668,105460.0,105450.0,0.00016001]
[1750724103071,6.03443813,105460.0,105450.0,0.00016001]
[1750724103274,6.38391976,105460.0,105450.0,0.00016001]
[1750724103477,5.7497728,105460.0,105450.0,0.00016001]
[1750724103685,5.7497728,105460.0,105450.0,0.01546001]
[1750724103686,0.90500349,105460.0,105450.0,0.01546001]
[1750724103884,0.26074186,105460.0,105450.0,0.03276001]
[1750724104085,0.09850186,105460.0,105450.0,0.31705025]
[1750724104340,0.09850186,105460.0,105450.0,0.33601558]
[1750724104559,0.003,105460.0,105450.0,0.33601558]
[1750724104981,0.003,105460.0,105450.0,0.61760752]
[1750724104982,0.002,105460.0,105450.0,0.61760752]
[1750724105184,0.31073335,105480.0,105470.0,0.22122738]
[1750724105185,0.53038141,105480.0,105470.0,0.22122738]
[1750724105331,0.62588327,105480.0,105470.0,0.24019001]
[1750724105730,0.25774186,105480.0,105470.0,0.24019001]
[1750724105946,0.43550186,105480.0,105470.0,0.24019001]
[1750724106564,0.43550186,105480.0,105470.0,0.0326]
[1750724106791,0.7180938,105480.0,105470.0,0.0326]
[1750724107007,0.7180938,105480.0,105470.0,0.04208136]
[1750724107214,0.59770186,105480.0,105470.0,0.25067074]
[1750724107437,0.59770186,105480.0,105470.0,0.26015174]
[1750724107615,0.59770186,105480.0,105470.0,0.26963193]
[1750724107828,0.59770186,105480.0,105470.0,0.23918947]
[1750724108024,0.43550186,105480.0,105470.0,0.23918983]
[1750724108227,0.43550186,105480.0,105470.0,0.24867074]
[1750724108634,0.43650186,105480.0,105470.0,0.25467083]
[1750724108893,0.43650186,105480.0,105470.0,0.24218992]
[1750724109094,0.001,105480.0,105470.0,0.54374359]
[1750724109306,0.001,105480.0,105470.0,0.59414359]
[1750724109307,0.002,105480.0,105470.0,0.59414359]
[1750724109681,0.002,105480.0,105470.0,0.59114359]
[1750724109682,0.001,105480.0,105470.0,0.59114359]
[1750724110498,0.001,105480.0,105470.0,0.30855165]
[1750724110907,0.001,105480.0,105470.0,0.26415165]
[1750724111122,0.28359194,105480.0,105470.0,0.0366]
[1750724111332,0.3790938,105480.0,105470.0,0.24518983]
[1750724111540,0.3800938,105480.0,105470.0,0.23970865]
[1750724111761,0.3800938,105480.0,105470.0,0.0406]
[1750724112441,0.3800938,105480.0,105470.0,0.01]
[1750724112643,0.3790938,105480.0,105470.0,0.004]
[1750724112796,0.3800938,105480.0,105470.0,0.0314]
[1750724113212,0.3790938,105480.0,105470.0,0.0204]
[1750724113417,0.3800938,105480.0,105470.0,0.23598983]
[1750724113596,0.09750186,105480.0,105470.0,0.25238992]
[1750724113794,0.09750186,105480.0,105470.0,0.24290874]
[1750724114000,0.3800938,105480.0,105470.0,0.0438]
[1750724114224,0.09750186,105480.0,105470.0,0.0438]
[1750724115503,0.09750186,105480.0,105470.0,0.23342738]
[1750724115725,0.3800938,105480.0,105470.0,0.24290874]
[1750724115862,0.3800938,105480.0,105470.0,0.25239001]
[1750724116086,0.3800938,105480.0,105470.0,0.2618711]
[1750724116325,0.3800938,105480.0,105470.0,0.25239001]
[1750724116917,0.3800938,105480.0,105470.0,0.24290874]
[1750724117123,0.3800938,105480.0,105470.0,0.0438]
[1750724117327,0.3800938,105480.0,105470.0,0.011]
[1750724117523,0.3800938,105480.0,105470.0,0.02996245]
[1750724117675,0.3800938,105480.0,105470.0,0.24457092]
[1750724117874,0.3800938,105480.0,105470.0,0.23508983]
[1750724118305,0.09750186,105480.0,105470.0,0.22560865]
[1750724118521,0.09750186,105480.0,105470.0,0.23508983]
[1750724118936,0.09750186,105480.0,105470.0,0.0265]
[1750724119372,1.04772659,105480.0,105470.0,0.011]
[1750724120012,1.09576105,105480.0,105470.0,0.011]
[1750724120215,1.09476105,105480.0,105470.0,0.004]
[1750724120371,1.09476105,105480.0,105450.0,0.00016001]
[1750724120372,0.01454085,105470.0,105450.0,0.00016001]
[1750724120626,0.8811338,105460.0,105450.0,0.00016001]
[1750724121966,0.8821338,105460.0,105450.0,0.00416001]
[1750724122679,0.8821338,105460.0,105450.0,0.00616001]
[1750724122881,0.8821338,105460.0,105450.0,0.00416001]
[1750724123219,0.8831338,105460.0,105450.0,0.00916001]
[1750724123431,0.9136338,105460.0,105450.0,0.00916001]
[1750724123826,0.92817465,105460.0,105450.0,0.00916001]
[1750724125099,0.89767465,105460.0,105450.0,0.00916001]
[1750724125479,0.91317465,105460.0,105450.0,0.00916001]
[1750724125919,0.92927465,105460.0,105450.0,0.00916001]
[1750724128833,0.64668271,105460.0,105450.0,0.00916001]
[1750724129039,0.89767465,105460.0,105450.0,0.00916001]
[1750724129660,0.60062186,105460.0,105450.0,0.00916001]
[1750724129878,0.8832138,105460.0,105450.0,0.00916001]
[1750724135922,0.8987938,105460.0,105450.0,0.00916001]
[1750724136116,0.7357938,105460.0,105450.0,0.00916001]
[1750724136364,0.91333465,105460.0,105450.0,0.00916001]
[1750724136569,0.92943465,105460.0,105450.0,0.00916001]
[1750724136925,0.64684271,105460.0,105450.0,0.00916001]
[1750724137138,0.92943465,105460.0,105450.0,0.00916001]
[1750724141239,0.95204852,105460.0,105450.0,0.00916001]
[1750724142657,0.62315573,105460.0,105450.0,0.00916001]
[1750724142844,0.8831338,105460.0,105450.0,0.00916001]
[1750724143917,0.7200938,105460.0,105450.0,0.00916001]
[1750724144121,0.8831338,105460.0,105450.0,0.00916001]
[1750724144333,0.91357465,105460.0,105450.0,0.00916001]
[1750724144541,1.23479934,105460.0,105450.0,0.00916001]
[1750724144743,1.2524618,105460.0,105450.0,0.00916001]
[1750724144962,0.0159,105450.0,105440.0,0.0002]
[1750724145165,0.69258574,105450.0,105440.0,0.0002]
[1750724145372,0.73950472,105450.0,105440.0,0.0002]
[1750724145815,0.73950484,105450.0,105440.0,0.0002]
[1750724146031,0.84951564,105450.0,105440.0,0.0002]
[1750724146264,0.92258761,105450.0,105440.0,0.00920438]
[1750724146479,0.79176536,105450.0,105440.0,0.00920438]
[1750724146687,0.95572536,105450.0,105440.0,0.00033837]
[1750724146925,0.36230951,105450.0,105440.0,0.00033837]
[1750724147169,0.92849339,105450.0,105440.0,0.00633837]
[1750724147380,0.95672536,105450.0,105440.0,0.00633837]
[1750724147588,1.29672536,105450.0,105440.0,0.00633837]
[1750724148205,1.3535112,105450.0,105440.0,0.00633837]
[1750724148431,1.27243901,105450.0,105440.0,0.00633837]
[1750724148638,1.29674921,105450.0,105440.0,0.00633837]
[1750724149049,1.29675157,105450.0,105440.0,0.00633837]
[1750724149251,1.13279157,105450.0,105440.0,0.00633837]
[1750724149447,1.34184349,105450.0,105440.0,0.00633837]
[1750724150072,0.77665961,105450.0,105440.0,0.00633837]
[1750724150275,1.34184349,105450.0,105440.0,0.00633837]
[1750724151963,0.77665961,105450.0,105440.0,0.00633837]
[1750724152163,1.34184349,105450.0,105440.0,0.00633837]
[1750724152591,1.22827344,105450.0,105440.0,0.00633837]
[1750724152825,1.43719344,105450.0,105440.0,0.00633837]
[1750724153035,0.90975073,105450.0,105440.0,0.00633837]
[1750724153255,1.47493461,105450.0,105440.0,0.00633837]
[1750724154594,1.37946466,105450.0,105440.0,0.00633837]
[1750724154808,1.37945973,105450.0,105440.0,0.00633837]
[1750724156425,1.17053973,105450.0,105440.0,0.00633837]
[1750724156626,1.38601973,105450.0,105440.0,0.00633837]
[1750724156999,0.61501468,105450.0,105440.0,0.00633837]
[1750724157319,1.01816662,105450.0,105440.0,0.00633837]
[1750724157872,1.30075038,105450.0,105440.0,0.00633837]
[1750724159145,1.10089038,105450.0,105440.0,0.00633837]
[1750724159350,0.98625844,105450.0,105440.0,0.00633837]
[1750724159521,0.95802647,105450.0,105440.0,0.00633837]
[1750724160129,0.94340036,105450.0,105440.0,0.03753837]
[1750724160280,0.95794121,105450.0,105440.0,0.03753837]
[1750724160479,0.95130861,105450.0,105440.0,0.03753837]
[1750724161614,0.95131394,105450.0,105440.0,0.03753837]
[1750724161811,0.9336351,105450.0,105440.0,0.03753837]
[1750724162373,0.95131528,105450.0,105440.0,0.03753837]
[1750724162559,0.95131528,105450.0,105440.0,0.00633837]
[1750724163276,0.5936351,105450.0,105440.0,0.02163837]
[1750724163477,0.5936351,105450.0,105440.0,0.03683837]
[1750724163781,0.9336351,105450.0,105440.0,0.03683837]
[1750724164153,0.9336351,105450.0,105440.0,0.00633837]
[1750724165901,1.24812704,105450.0,105440.0,0.00633837]
[1750724166128,1.26581655,105450.0,105440.0,0.00633837]
[1750724166535,1.36792135,105450.0,105440.0,0.00633837]
[1750724167192,1.3679363,105450.0,105440.0,0.00633837]
[1750724168849,1.36794226,105450.0,105440.0,0.00633837]
[1750724169526,1.3679436,105450.0,105440.0,0.00633837]
[1750724174470,1.39625323,105450.0,105440.0,0.00633837]
[1750724174673,1.3962585,105450.0,105440.0,0.00633837]
[1750724175734,1.30078855,105450.0,105440.0,0.00633837]
[1750724175982,1.27247892,105450.0,105440.0,0.00633837]
[1750724176721,1.30078855,105450.0,105440.0,0.00633837]
[1750724177572,1.30078793,105450.0,105440.0,0.00633837]
[1750724181803,1.30080729,105450.0,105440.0,0.00633837]